Cogmind - Beta 15 @@@ ROGUE MODE // 2025.06.18 @ 22:12:30 Player: BlobtheGreat Result: Destroyed by P-60 Hacker with Shock Rifle Performance ------------- Evolutions (2) 1000 Regions Visited (6) 1200 Robots Destroyed (85) 425 Value Destroyed (3078) 3078 Prototype IDs (5) 100 Alien Tech Used (0) 0 Bonus (843) 843 TOTAL SCORE: 6646 Bonus ------- High Alert Combat Kills 108 Follower Combat Kills 35 Entered Garrisons 200 Used RIF Installer 500 Cogmind --------- Core Integrity 0/550 Matter 278/300 Energy 100/100 System Corruption 8% Temperature Cool (0) Movement Core (750) Ox14 Location -8/Garrison Parts ------- > --- POWER (1) -------- (None) > --- PROPULSION (4) --- (None) > --- UTILITY (3) ------ High-capacity Storage Unit > --- WEAPON (3) ------- Heavy Flail > --- INVENTORY (20) --- Light Nuclear Core Aluminum Leg High-capacity Matter Pod (200) Structural Scanner Seismic Detector Light Armor Plating Hacking Suite Relay Coupler [NC] (31) Relay Coupler [Grunt] (31) Relay Coupler [Duelist] (31) Relay Coupler [Sentry] (24) Relay Coupler [Specialist] (21) Relay Coupler [Hunter] (16) Relay Coupler [Behemoth] (10) Advanced Beam Cannon Heavy Assault Rifle Heavy Rocket Launcher Heavy Rocket Launcher Remote Datajack Peak State ------------ > --- POWER ------------ Improved Ion Engine > --- PROPULSION ------- Aluminum Leg Aluminum Leg Aluminum Leg Carbon-fiber Leg > --- UTILITY ---------- Improved Heat Sink High-capacity Storage Unit Medium Armor Plating > --- WEAPON ----------- Assault Cannon Assault Cannon Heavy Flail > --- INVENTORY -------- Light Nuclear Core Aluminum Leg Aluminum Leg High-capacity Matter Pod Structural Scanner Seismic Detector Light Armor Plating Hacking Suite Relay Coupler [NC] Relay Coupler [Duelist] Relay Coupler [Sentry] Relay Coupler [Specialist] Relay Coupler [Behemoth] Advanced Beam Cannon Heavy Assault Rifle Heavy Assault Rifle Heavy Rocket Launcher Heavy Rocket Launcher Remote Datajack Great Maul [Rating: 28] Favorites ----------- Power Improved Ion Engine Engine Improved Ion Engine Power Core Nuclear Core Propulsion Light Treads Treads Light Treads Leg Aluminum Leg Utility High-capacity Matter Pod Device Seismic Detector Storage High-capacity Matter Pod Protection Medium Armor Plating Weapon Assault Rifle Energy Gun Advanced Beam Rifle Ballistic Gun Assault Rifle Ballistic Cannon Assault Cannon Impact Weapon Heavy Flail Build | -11 -10 -10 -10 -9 -8 -8 ------- Run | Yrd Mat Min Exi Min Mat Gar Slots Evolved 4 | . . . . . 4 . Power . | . . . . . . . Propulsion 2 | . . . . . 2 . Utility 1 | . . . . . 1 . Weapon 1 | . . . . . 1 . Parts Attached 55 | 8 7 4 1 2 17 16 Power 6 | 1 2 1 . . 1 1 Engine 5 | 1 2 1 . . . 1 Core 1 | . . . . . 1 . Reactor . | . . . . . . . Propulsion 20 | 2 . 1 . 2 9 6 Treads 14 | 2 . 1 . 2 7 2 Leg 6 | . . . . . 2 4 Wheel . | . . . . . . . Hover . | . . . . . . . Flight . | . . . . . . . Utility 12 | 2 3 . 1 . 3 3 Device 4 | 1 . . . . 1 2 Storage 5 | 1 3 . 1 . . . Processor . | . . . . . . . Hackware . | . . . . . . . Protection 3 | . . . . . 2 1 Artifact . | . . . . . . . Weapon 17 | 3 2 2 . . 4 6 Energy Gun 4 | 3 . . . . 1 . Energy Cannon . | . . . . . . . Ballistic Gun 8 | . 2 2 . . 3 1 Ballistic Cannon 3 | . . . . . . 3 Launcher . | . . . . . . . Special Weapon . | . . . . . . . Impact Weapon 2 | . . . . . . 2 Slashing Weapon . | . . . . . . . Piercing Weapon . | . . . . . . . Special Melee Weapon . | . . . . . . . Unidentified Prototypes 1 | . . . . . 1 . Parts Lost 28 | . 1 2 . 2 5 18 Power 4 | . 1 . . . 1 2 Propulsion 11 | . . 1 . 2 1 7 Utility 5 | . . . . . 1 4 Weapon 8 | . . 1 . . 2 5 Highest Loss Streak 10 | . 1 1 . 1 3 10 To Critical Strikes 1 | . . . . . . 1 Average Backups 15 | 5 10 14 15 18 19 19 Power 1 | . 1 2 2 2 2 . Propulsion 2 | 3 4 2 2 3 2 1 Utility 4 | . 2 4 4 4 5 7 Weapon 6 | . 2 6 7 7 8 7 Tool/Special . | . . . . . . . Unused Backups 49 | . 8 4 . . 17 20 Power 4 | . . 1 . . 2 1 Propulsion 10 | . 5 . . . 2 3 Utility 18 | . 3 2 . . 2 11 Weapon 15 | . . 1 . . 11 3 Tool/Special 2 | . . . . . . 2 Average Slot Usage (%) 98 | . 99 99 100 99 95 94 Engine 9 | . 13 14 14 14 . 6 Core 2 | . . . . . 8 1 Treads 26 | . 28 27 28 27 31 8 Leg 3 | . . . . . 2 25 Device 3 | . 1 . . . 9 9 Storage 21 | . 26 28 28 28 13 9 Protection 1 | . . . . . 3 6 Energy Gun 2 | . 5 . . . 4 1 Ballistic Gun 22 | . 22 27 28 28 21 6 Ballistic Cannon 1 | . . . . . . 14 Peak Build Rating 28 | 7 9 11 10 12 24 28 Average Rating 13 | 5 7 10 10 11 20 24 On Entrance 10 | . 7 8 10 10 12 23 Naked Turns . | . . . . . . . Heaviest Build 68 | 12 33 36 56 56 65 68 Greatest Support 80 | 40 40 40 40 40 80 80 Greatest Overweight (x) 14 | . . . 1 2 2 14 Average Overweight (x) . | . . . . 1 . . Largest Inventory Capacity 20 | 8 15 15 20 20 20 20 Average Capacity 16 | 7 11 15 17 20 20 20 Most Carried 20 | 7 15 15 15 20 20 20 Average Carried 15 | 5 10 14 15 18 19 19 Final Capacity 20 | 8 15 15 20 20 20 20 Final Carried 20 | 7 15 15 15 19 20 19 Class Distribution -------------------- 66% | Mutant 12% | Scavenger-Tank 8% | Scavenger-Skirmisher 6% | Scavenger-Mutant 3% | Scavenger-Gunner Dominant Class ---------------- Mutant | -10/Materials Mutant | -10/Mines Mutant | -10/Exiles Mutant | -9/Mines Scavenger-Tank | -8/Materials Scavenger-Mutant | -8/Garrison Resources | -11 -10 -10 -10 -9 -8 -8 ----------- Run | Yrd Mat Min Exi Min Mat Gar Matter Collected 2623 | 314 611 96 . 193 733 676 Remotely . | . . . . . . . Salvage Created 3784 | 159 909 202 . 234 1434 846 Parts 184 | 11 52 12 . 7 71 31 Haulers Intercepted 6 | . 2 . . . 4 . Recyclers Shooed 5 | . 3 . . . 2 . Parts Field Recycled . | . . . . . . . Retrieved Matter . | . . . . . . . Parts Self-Destructed . | . . . . . . . Prevented . | . . . . . . . Kills | -11 -10 -10 -10 -9 -8 -8 ------- Run | Yrd Mat Min Exi Min Mat Gar Combat Hostiles Destroyed 64 | . 17 4 . 9 12 22 Melee 1 | . . . . . . 1 Guns 45 | . 17 4 . 9 12 3 Cannons 17 | . . . . . . 17 Classes Destroyed 13 | 2 4 1 . 2 2 2 Worker 2 | . . . . . 2 . Tunneler 5 | 5 . . . . . . Hauler 6 | . 2 . . . 4 . Recycler 8 | 1 1 . . . 6 . Watcher 5 | . 2 . . . 3 . Swarmer 3 | . 3 . . . . . Grunt 40 | . 14 2 . 3 4 17 Brawler 1 | . . . . 1 . . Duelist 1 | . . . . . 1 . Sentry 11 | . . 2 . . 7 2 Hunter 1 | . . . . . . 1 Programmer 2 | . . . . . . 2 Assembled 5 | . . . . 5 . . Best Kill Streak 9 | 3 6 2 . 4 3 9 Combat Bots Only 9 | . 4 2 . 4 2 9 Max Kills in Single Turn 2 | 1 2 1 . 1 1 1 Gunslinging 1 | . 1 . . . . . Exploded . | . . . . . . . Melee 1 | . . . . . . 1 Uniques/NPCs Destroyed . | . . . . . . . Combat | -11 -10 -10 -10 -9 -8 -8 -------- Run | Yrd Mat Min Exi Min Mat Gar Hostile Shots Fired 405 | . 69 18 . 37 64 217 Missed 88 | . 20 5 . 9 18 36 Hits 317 | . 49 13 . 28 46 181 Melee 2 | . . . . 2 . . Projectile 315 | . 49 13 . 26 46 181 Critical Strikes 24 | . 1 1 . 1 3 18 Part Disruptions 1 | . . . . 1 . . Damage Taken 4707 | . 565 192 . 414 697 2839 Core 780 | . 105 29 . 83 46 517 Absorbed by Shields . | . . . . . . . Core Remaining (%) 56 | 100 . . . 13 . . Volleys Fired 280 | 20 80 8 . 28 86 58 Largest 3 | 2 2 2 . 2 3 3 Hottest 118 | 90 90 43 . 43 104 118 Shots Fired 619 | 40 160 16 . 56 215 132 Gun 532 | 40 160 16 . 56 215 45 Cannon 87 | . . . . . . 87 Launcher . | . . . . . . . Special . | . . . . . . . Kinetic 502 | . 118 16 . 56 186 126 Thermal 117 | 40 42 . . . 29 6 Explosive . | . . . . . . . Electromagnetic . | . . . . . . . Robot Hit Streak 27 | 4 27 17 . 8 16 17 Robot Miss Streak 4 | 4 4 . . 3 4 3 Penetration Max . | . . . . . . . Secondary Targets 3 | . 2 . . 1 . . Max Gunslinging Chain 1 | . 1 . . 1 . . Shots Hit Robots 409 | 21 109 15 . 31 138 95 Core Hits 156 | 7 42 7 . 14 48 38 Critical Kills 2 | . 1 . . . . 1 Critical Parts Destroyed 3 | . 1 . . . 1 1 Critical Strikes 18 | . 3 . . . 5 10 Burn 6 | . 1 . . . 4 1 Destroy 3 | . 2 . . . 1 . Blast 7 | . . . . . . 7 Smash 2 | . . . . . . 2 Melee Attacks 17 | . . . . . . 17 Impact 17 | . . . . . . 17 Slashing . | . . . . . . . Piercing . | . . . . . . . Sneak Attacks . | . . . . . . . Combat Hostiles . | . . . . . . . Follow-up Attacks . | . . . . . . . Damage Inflicted 6616 | 254 1412 211 . 425 2039 2275 Guns 4846 | 254 1408 211 . 425 2039 509 Cannons 1493 | . . . . . . 1493 Explosions . | . . . . . . . Melee 272 | . . . . . . 272 Ramming 5 | . 4 . . . . 1 Kinetic 5201 | . 1062 211 . 425 1611 1892 Thermal 1138 | 254 346 . . . 428 110 Explosive . | . . . . . . . Electromagnetic . | . . . . . . . Impact 272 | . . . . . . 272 Slashing . | . . . . . . . Piercing . | . . . . . . . Highest Corruption 7 | . . . . . . 7 Average Corruption 5 | . . . . . . 5 Corruption Purged . | . . . . . . . Corruption Blocked . | . . . . . . . Overload Shots . | . . . . . . . Overflow Damage 76 | . . . . . . 76 Projectiles 25 | . . . . . . 25 Explosions . | . . . . . . . Melee 51 | . . . . . . 51 Knockbacks 5 | . . . . . . 5 Impact . | . . . . . . . Kinetic 5 | . . . . . . 5 Secondary . | . . . . . . . Self-Inflicted Damage . | . . . . . . . Shots . | . . . . . . . Rammed 1 | . 1 . . . . . Targets Rammed 3 | . 1 . . . . 2 Kicked 2 | . . . . . . 2 Crushed . | . . . . . . . Highest Temperature 537 | 326 234 22 . 25 157 537 Average Temperature 127 | 121 71 7 . 11 47 303 Received Heat Transfer 1967 | . 288 90 . 194 351 1044 Effects 23 | 1 . . . . . 22 Shutdowns 1 | . . . . . . 1 Energy Bleed 2 | . . . . . . 2 Interference 6 | . . . . . . 6 Matter Decay 4 | 1 . . . . . 3 Short Circuit 3 | . . . . . . 3 Damage (minor) 3 | . . . . . . 3 Damage (major) 3 | . . . . . . 3 Damage (core) 1 | . . . . . . 1 Siege Activations . | . . . . . . . Martial Activations . | . . . . . . . Shielding Activations . | . . . . . . . Robots Disrupted . | . . . . . . . Combat Hostiles . | . . . . . . . Robots Corrupted . | . . . . . . . Combat Hostiles . | . . . . . . . Parts Fried . | . . . . . . . Impact Corruptions 3 | . . . . . . 3 Robots Melted . | . . . . . . . Combat Hostiles . | . . . . . . . Parts Melted 3 | . . . . . 3 . Heat Transferred 2980 | 657 991 . . . 1073 259 Parts Sabotaged . | . . . . . . . Parts Stolen . | . . . . . . . Parts Stripped . | . . . . . . . Power Chain Reactions . | . . . . . . . Alert | -11 -10 -10 -10 -9 -8 -8 ------- Run | Yrd Mat Min Exi Min Mat Gar Maximum Alert Level 2 | . . . . . . 2 Low Security (%) 86 | 100 100 100 . 100 100 16 Level 1 5 | . . . . . . 34 Level 2 7 | . . . . . . 49 Level 3 . | . . . . . . . Level 4 . | . . . . . . . Level 5 . | . . . . . . . High Security . | . . . . . . . Max Security . | . . . . . . . Peak Influence 608 | 10 175 67 . 85 106 608 Initial 57 | . . 46 . . 21 57 Average 90 | 1 99 5 . 11 42 354 Influence Increases 2117 | 30 571 91 . 130 564 731 Destroy 0b10 Robot/C 1200 | . 340 80 . 80 240 460 Destroy 0b10 Robot/NC 140 | 30 35 . . . 75 . Destroy Leader 212 | . 68 10 . 20 94 20 Allied During Kill 3 | . . . . . . 3 Successful Hack 84 | . 37 . . . 19 28 Anti-Garrison Action 150 | . . . . . . 150 Destroy Structure 13 | . 1 1 . . 1 10 Partial Spotted 15 | . 15 . . . . . Lose Combat Pursuer 300 | . 75 . . 30 135 60 Influence Decreases 1569 | 30 451 211 . 74 532 271 Entered New Map 140 | . . 74 . . 35 31 Time Decay 1108 | 30 441 117 . 64 456 . Lost Part 261 | . 10 20 . 10 41 180 Lost Ally 60 | . . . . . . 60 Squads Dispatched 3 | . 3 . . . . . Investigation 2 | . 2 . . . . . Extermination . | . . . . . . . Reinforcement 1 | . 1 . . . . . Assault . | . . . . . . . Garrison . | . . . . . . . Intercept . | . . . . . . . Searches Triggered . | . . . . . . . Construction Impeded . | . . . . . . . Haulers Reinforced . | . . . . . . . Active Scanning Responses . | . . . . . . . Cargo Convoy Interrupts . | . . . . . . . Stealth | -11 -10 -10 -10 -9 -8 -8 --------- Run | Yrd Mat Min Exi Min Mat Gar Distress Signals 8 | . 4 . . 1 3 . Communications Jammed . | . . . . . . . Distress Signals . | . . . . . . . Times Spotted 112 | . 37 4 . 13 32 26 Peak Tracking Total 8 | . 4 2 . 3 5 8 Tactical Retreats 19 | . 3 . . 4 9 3 Traps | -11 -10 -10 -10 -9 -8 -8 ------- Run | Yrd Mat Min Exi Min Mat Gar Traps Triggered 2 | . 1 . . . . 1 Indirectly . | . . . . . . . Trap Hack Attempts . | . . . . . . . Triggered . | . . . . . . . Disarmed 6 | . 6 . . . . . Reprogrammed . | . . . . . . . Reused . | . . . . . . . Traps Extracted . | . . . . . . . Installed . | . . . . . . . Triggered . | . . . . . . . Machines | -11 -10 -10 -10 -9 -8 -8 ---------- Run | Yrd Mat Min Exi Min Mat Gar Machines Disabled 2 | . . . . . . 2 Max in Single Turn 1 | . . . . . . 1 Garrison Relay 2 | . . . . . . 2 Machines Repaired . | . . . . . . . Machines Dismantled . | . . . . . . . Machines Sabotaged . | . . . . . . . Overloaded Fab Kills . | . . . . . . . Hacking | -11 -10 -10 -10 -9 -8 -8 --------- Run | Yrd Mat Min Exi Min Mat Gar Machines Accessed 21 | . 7 . 4 . 7 3 Terminals 15 | . 6 . . . 6 3 Fabricators . | . . . . . . . Repair Stations . | . . . . . . . Recycling Units 1 | . 1 . . . . . Scanalyzers . | . . . . . . . Garrison Access 1 | . . . . . 1 . Total Hacks 46 | . 17 . 4 . 19 6 Successful 24 | . 12 . 4 . 6 2 Failed 20 | . 4 . . . 12 4 Catastrophic 5 | . 1 . . . 4 . Database Lockouts 2 | . 1 . . . 1 . Manual 20 | . 9 . . . 11 . Terminals 39 | . 16 . . . 17 6 Fabricators . | . . . . . . . Repair Stations . | . . . . . . . Recycling Units 1 | . 1 . . . . . Scanalyzers . | . . . . . . . Garrison Access 2 | . . . . . 2 . Terminal Hacks 16 | . 7 . 4 . 3 2 Record 4 | . . . 4 . . . Robot Analysis 3 | . 1 . . . 2 . Prototype ID Bank 2 | . 1 . . . 1 . Emergency Access Points 1 | . . . . . . 1 Recycling Unit Index 1 | . 1 . . . . . Alert Level 2 | . 2 . . . . . Disarm Traps 1 | . 1 . . . . . Zone Layout 1 | . 1 . . . . . Garrison Registry 1 | . . . . . . 1 Fabricator Hacks . | . . . . . . . Repair Station Hacks . | . . . . . . . Recycling Unit Hacks 1 | . 1 . . . . . Report Inventory 1 | . 1 . . . . . Scanalyzer . | . . . . . . . Garrison Access Hacks 1 | . . . . . 1 . Unlock Access 1 | . . . . . 1 . Unauthorized Hacks 6 | . 4 . . . 2 . Terminals 6 | . 4 . . . 2 . Assimilate 2 | . 2 . . . . . Botnet 4 | . 2 . . . 2 . Fabricators . | . . . . . . . Repair Stations . | . . . . . . . Recycling Units . | . . . . . . . Scanalyzers . | . . . . . . . Garrison Access . | . . . . . . . Data Cores Recovered . | . . . . . . . Used . | . . . . . . . Hacking Detections 14 | . 5 . . . 7 2 Full Trace Events 2 | . 1 . . . . 1 Feedback Events . | . . . . . . . Feedback Blocked . | . . . . . . . Robot Schematics Acquired . | . . . . . . . Robots Built . | . . . . . . . Authchips . | . . . . . . . Time . | . . . . . . . Total Robot Build Rating . | . . . . . . . Part Schematics Acquired . | . . . . . . . Parts Built . | . . . . . . . Authchips . | . . . . . . . Time . | . . . . . . . Total Part Build Rating . | . . . . . . . Parts Repaired . | . . . . . . . Time . | . . . . . . . Parts Recycled . | . . . . . . . Recycled Matter . | . . . . . . . Retrieved Matter . | . . . . . . . Retrieved Components . | . . . . . . . Parts Scanalyzed . | . . . . . . . Part Schematics Acquired . | . . . . . . . Parts Damaged . | . . . . . . . Bothacking | -11 -10 -10 -10 -9 -8 -8 ------------ Run | Yrd Mat Min Exi Min Mat Gar Used RIF Installer 1 | . . . . . . 1 Robots Hacked . | . . . . . . . Non-combat . | . . . . . . . Combat . | . . . . . . . Robot Hacks Applied . | . . . . . . . Relay Couplers Released 9 | . . . . . . 9 Machine Destruction 9 | . . . . . . 9 Fabnet Peak Effective % . | . . . . . . . Robots Rewired 3 | . . . . . . 3 Allies Hacked . | . . . . . . . Hacks Repelled . | . . . . . . . Allies | -11 -10 -10 -10 -9 -8 -8 -------- Run | Yrd Mat Min Exi Min Mat Gar Total Allies 4 | . 1 . . . . 3 Largest Group 3 | . 1 1 . . . 3 Highest-Rated Group 15 | . 10 10 . . . 15 Highest-Rated Ally 10 | . 10 10 . . . 5 Total Orders . | . . . . . . . Ally Attacks 34 | . . . . . . 34 Total Damage 225 | . . . . . . 225 Kills 1 | . . . . . . 1 Allies Corrupted . | . . . . . . . Allies Melted . | . . . . . . . Intel | -11 -10 -10 -10 -9 -8 -8 ------- Run | Yrd Mat Min Exi Min Mat Gar Active Infowar (turns) 1572 | 24 172 . . . 1241 135 Traps 1032 | . . . . . 897 135 Seismic 1220 | 24 172 . . . 901 123 Robot Analysis Total 3 | . 1 . . . 2 . Derelict Logs Recovered 3 | . . 2 . 1 . . Drone Launches . | . . . . . . . Drone Recoveries . | . . . . . . . Exploration | -11 -10 -10 -10 -9 -8 -8 ------------- Run | Yrd Mat Min Exi Min Mat Gar Turns Passed 7955 | 243 1266 1270 1629 794 1743 1010 Spaces Moved 3816 | 105 614 769 859 292 804 373 Core 5 | 3 . . . . . 2 Treads 3487 | 102 614 769 859 292 780 71 Legs 324 | . . . . . 24 300 Wheels . | . . . . . . . Hover . | . . . . . . . Flight . | . . . . . . . Fastest Speed 50 | 50 160 160 160 240 160 160 Average Speed 177 | 156 160 160 189 240 169 191 Slowest Speed 750 | 160 160 160 240 320 320 750 Overloaded Moves . | . . . . . . . Propulsion Burnouts . | . . . . . . . Robots Hopped . | . . . . . . . Potential Cave-ins 2 | . . . . 2 . . Cave-ins Triggered . | . . . . . . . Exploration Rate (%) 65 | 7 97 98 91 55 59 53 Regions Visited 6 Branch Regions 3 Pre-discovered Areas 1 | . . 1 . . . . Known Exits Taken 2 | . . . 1 . 1 . Unknown Exits Taken 4 | 1 1 1 . 1 . . Scrap Searched 2 | . . 1 . 1 . . Spaces Dug . | . . . . . . . Terrain Destroyed . | . . . . . . . Melee . | . . . . . . . Projectile . | . . . . . . . AOE . | . . . . . . . Terrain Rammed . | . . . . . . . Walls Destroyed . | . . . . . . . Machines Disabled . | . . . . . . . Actions | -11 -10 -10 -10 -9 -8 -8 --------- Run | Yrd Mat Min Exi Min Mat Gar Total 4430 | 139 740 799 860 329 1030 533 Wait 91 | . 8 3 . 2 61 17 Move 3810 | 104 613 768 858 291 803 373 Hop . | . . . . . . . Pick Up 81 | 7 16 8 . 6 31 13 Fast Attach 19 | 7 4 . . . 3 5 Attach 19 | . 1 2 . 2 7 7 Detach 3 | . . . . . . 3 Swap 25 | 1 3 2 1 . 11 7 Drop 60 | . 13 8 1 . 28 10 Fire 280 | 20 80 8 . 28 86 58 Melee 17 | . . . . . . 17 Ram . | . . . . . . . Kick 2 | . . . . . . 2 Crush 1 | . 1 . . . . . Escape Stasis 5 | . . . . . . 5 Rewire 17 | . 1 . . . . 16 Trap . | . . . . . . . Miscellaneous . | . . . . . . . Route ------- -11/Scrapyard -10/Materials (discovered 6 exits: [*Mat x3] / [*Min x2] / [*Sub]) -10/Mines (discovered 3 exits: [*Mat x2] / *Exi) -10/Exiles (discovered 2 exits: *Min x2) -9/Mines (discovered 2 exits: *Mat x2) -8/Materials (discovered 3 exits: [*Fac x2] / Gar) -8/Garrison (discovered 4 exits: [Fac x3] / [*Mat]) History --------- Turn | Location | Event 8 | -11/Scrapyard | Discovered new exit (range 15) 244 | -11/Scrapyard | Entered Materials 302 | -10/Materials | Build established: Mutant 634 | -10/Materials | Discovered new exit (range 12) 797 | -10/Materials | Discovered new exit (range 13) 835 | -10/Materials | Central database locked down 921 | -10/Materials | Discovered new exit (range 17) 1243 | -10/Materials | Discovered new exit (range 8) 1256 | -10/Materials | Discovered new exit (range 7) 1409 | -10/Materials | Discovered new exit (range 7) 1510 | -10/Materials | Entered Mines 1510 | -10/Mines | Accompanied by 1 ally 1537 | -10/Mines | Core integrity fell below 50% 2190 | -10/Mines | Discovered new exit (range 8) 2324 | -10/Mines | Discovered new exit (range 5) 2457 | -10/Mines | YI-UF0 nonchalantly dropped a Grenade Launcher on the ground 2772 | -10/Mines | Deemed a non-threat by the Exiles lab entrance 2773 | -10/Mines | Discovered new exit (range 5) 2780 | -10/Mines | Entered Exiles 2780 | -10/Exiles | Found Exiles lab abandoned 2781 | -10/Exiles | Identified exit to Mines 4409 | -10/Exiles | Entered Mines 4410 | -9/Mines | Assembled infested the area 4595 | -9/Mines | Discovered new exit (range 10) 4848 | -9/Mines | Learned Materials garrison access intel 5136 | -9/Mines | Discovered new exit (range 8) 5171 | -9/Mines | Core integrity fell below 20% 5203 | -9/Mines | Entered Materials 5203 | -8/Materials | Evolved 4 slots: Propulsion x2, Utility x1, Weapon x1 5204 | -8/Materials | Loaded intel: 1 garrison access location 5311 | -8/Materials | Lost 3 parts (1p1n1w) 5837 | -8/Materials | Build established: Scavenger-Tank 6090 | -8/Materials | Discovered new exit (range 5) 6095 | -8/Materials | Central database locked down 6759 | -8/Materials | Discovered new exit (range 15) 6853 | -8/Materials | Identified exit to Garrison 6856 | -8/Materials | Build established: Scavenger-Skirmisher 6946 | -8/Materials | Entered Garrison 6975 | -8/Garrison | Discovered new exit (range 66) 6975 | -8/Garrison | Discovered new exit (range 49) 6975 | -8/Garrison | Discovered new exit (range 56) 6975 | -8/Garrison | Discovered new exit (range 30) 7054 | -8/Garrison | Triggered checkpoint 7062 | -8/Garrison | Triggered checkpoint 7111 | -8/Garrison | Triggered checkpoint 7171 | -8/Garrison | Destroyed 9 combat bots 7171 | -8/Garrison | Lost 4 parts (1p2n1u) 7305 | -8/Garrison | Installed Relay Interface Framework 7336 | -8/Garrison | Triggered checkpoint 7446 | -8/Garrison | Garrison Relay disabled 7472 | -8/Garrison | Triggered checkpoint 7485 | -8/Garrison | Core integrity fell below 50% 7742 | -8/Garrison | Build established: Scavenger-Mutant 7756 | -8/Garrison | Triggered checkpoint 7799 | -8/Garrison | Garrison Relay disabled 7837 | -8/Garrison | Lost 3 allies 7941 | -8/Garrison | Core integrity fell below 20% 7956 | -8/Garrison | Lost 10 parts (1p4n2u3w) 7956 | -8/Garrison | Destroyed by P-60 Hacker with Shock Rifle Last Messages --------------- 07923_ Carbon-fiber Leg destroyed. 07925_ P-60 Hacker resets P-60 Hacker, system corruption cleaned. 07925_ P-60 Hacker suffers critical hit (Smash). 07925_ P-60 Hacker destroyed. 07925_ Imp. Ion Engine destroyed. 07927_ P-60 Hacker suffers critical hit (Smash). 07927_ Destroyed Imp. Heat Sink. 07927_ P-60 Hacker system corrupted by crushing effect. 07942_ Destroyed Gravmag System. 07942_ P-60 Hacker system corrupted by crushing effect. 07947_ P-60 Hacker heat short circuits Gravmag System. 07948_ P-60 Hacker heat damages Imp. Heat Sink. 07951_ P-60 Hacker heat damages Broken Gravmag System. 07952_ P-60 Hacker heat damages core (-6). 07953_ P-60 Hacker heat damages core (-9). Map ----- +----------------------------------------------------+ | ???????????????# ####### #####+##### #??????##### | | ???????????????# #?????# #???# #???# #??????????? | | ???????????????# #?????# #???# #???# #??????????? | | ???????????????# #?????# #???# #???# #??????????? | | ???????????????# #?????# #???# #???# #??????????? | | ???????????????# #?????# #???# #???# #??????????? | | ???????????????# #?????# #???# #???# #??????????? | | ???????????????# #?????# #???# #???# #??????????? | | ???????????????# #?????# #???# #???# #??????????? | | ?????????????### #?????# ###?# #?### #??????????? | | ?????????????# #?????# % ### ### " #??????????? | | ?????????????# < #?????#[[ + + " #??????????? | | ?????????????# #?????#*% ####### " #??????????? | | ?????????????######?????#%###?????### #??????????? | | ????????????????????????#*#?????????# #??????????? | | ????????????????????#####[########### #??????????? | | ????????????????????#"=%[ ![/ ! ^^ #??????????? | | ????????????????????#"T"# #### !=######??????????? | | ????????????????????#####!#?#"/"""#??????????????? | | ????????????????????????#!#?#######??????????????? | | ????????????????????????# #??????????????????????? | | ?????????????????????#### ####???????????????????? | | ?????????????????????# !+p+! #???????????????????? | | ?????????????????????# !#[#! #???????????????????? | | ?????????????????????#+##!##+#???????????????????? | | ?????????????????????#! #@# !#???????????????????? | | ?????????????????????#!%*%+!!#???????????????????? | | ?????????????????????#########???????????????????? | | ?????????????????????????????????????????????????? | | ?????????????????????????????????????????????????? | | ?????????????????????????????????????????????????? | | ?????????????????????????????????????????????????? | | ?????????????????????????????????????????????????? | | ?????????????????????????????????????????????????? | | | | | | | | | | | | | | | | | | | | | | | | | | | | | | | | | +----------------------------------------------------+ Best States ------------- Heat Dissipation 45 Energy Generation 14 Energy Capacity 325 Matter Stores 500 Matter Capacity 500 Sight Range 16 Terrain Scan Density 10 Armor Coverage 225 Evasion (%) 40 Recoil Reduction 4 Authchip Count 3 Item Schematics ----------------- None Robot Schematics ------------------ None Fabricated ------------ Nothing Repaired ---------- Nothing Alien Tech Used ----------------- None Achievements -------------- None Challenges ------------ None Game ------ Seed BehemothSurgeKinecellerator Manual? 0 Play Time 00:46:17 Cumulative 32.3 hours Start 2025.06.18 @ 21:25:14 End 2025.06.18 @ 22:12:30 Sessions 1 Manual Loads 0 Difficulty Rogue Special Mode None Game No. 32 Rogue 32 Adventurer 0 Explorer 0 Win Type - Total 0 Types 0/0/0/0/0/0/0/0/0/0 Lore% 24 Gallery% 27 Achievement% 29 Wizard Run 0 Options --------- Layout 1 ASCII 0 Keyboard 1 Movement Arrows Keybinds 0 Fullscreen 1 Font 24/Smallcaps Map View 50x40 Zoom Use 0% Tactical HUD 1 Map Filters NONE Filters NONE Steam 1 RUN: 29018f75-c70d-42df-bf2a-ead753f6362e